[Event "*** Titled Tuesday Blitz"]
[Site "Chess.com"]
[Date "2021.04.20"]
[Round "5"]
[White "MeekMammoth2"]
[Black "adnan_nn"]
[Result "0-1"]
[WhiteElo "2452"]
[BlackElo "2658"]
[TimeControl "180+1"]
[EndTime "10:55:16 PDT"]
[Termination "adnan_nn won by checkmate"]

1. e4 {[%clk 0:03:00.9]} 1... c5 {[%clk 0:02:59.6]} 2. c3 {[%clk 0:03:01.1]}
2... d5 {[%clk 0:02:57.4]} 3. exd5 {[%clk 0:03:02]} 3... Nf6 {[%clk 0:02:54.6]}
4. Bb5+ {[%clk 0:03:00.4]} 4... Nbd7 {[%clk 0:02:50.6]} 5. c4 {[%clk 0:02:52]}
5... a6 {[%clk 0:02:49.3]} 6. Ba4 {[%clk 0:02:47.6]} 6... b5 {[%clk 0:02:49.7]}
7. cxb5 {[%clk 0:02:47.6]} 7... Nxd5 {[%clk 0:02:41.6]} 8. Nf3 {[%clk
0:02:40.5]} 8... N7b6 {[%clk 0:02:26.1]} 9. bxa6+ {[%clk 0:02:24.4]} 9... Nxa4
{[%clk 0:02:18.6]} 10. Qxa4+ {[%clk 0:02:25.3]} 10... Bd7 {[%clk 0:02:18.8]} 11.
Qc4 {[%clk 0:02:22.2]} 11... e6 {[%clk 0:02:19.2]} 12. O-O {[%clk 0:02:20.1]}
12... Bc8 {[%clk 0:02:09.6]} 13. Qb5+ {[%clk 0:02:12.9]} 13... Bd7 {[%clk
0:02:06.4]} 14. Qc4 {[%clk 0:02:11.2]} 14... Bd6 {[%clk 0:02:01.4]} 15. Nc3
{[%clk 0:01:54.8]} 15... O-O {[%clk 0:01:57.2]} 16. Nxd5 {[%clk 0:01:51]} 16...
exd5 {[%clk 0:01:57.7]} 17. Qxd5 {[%clk 0:01:51.9]} 17... Rxa6 {[%clk
0:01:52.4]} 18. d4 {[%clk 0:01:35]} 18... Bb5 {[%clk 0:01:46.6]} 19. Qb3 {[%clk
0:00:55.3]} 19... Bxf1 {[%clk 0:01:42.3]} 20. Kxf1 {[%clk 0:00:56.2]} 20... cxd4
{[%clk 0:01:42.2]} 21. Nxd4 {[%clk 0:00:55.7]} 21... Bxh2 {[%clk 0:01:37.4]} 22.
Be3 {[%clk 0:00:55.6]} 22... Bf4 {[%clk 0:01:28.1]} 23. Bxf4 {[%clk 0:00:49.4]}
23... Qxd4 {[%clk 0:01:25.6]} 24. Be3 {[%clk 0:00:45.6]} 24... Qh4 {[%clk
0:01:20.7]} 25. Kg1 {[%clk 0:00:45.8]} 25... Rg6 {[%clk 0:01:12.9]} 26. Qb7
{[%clk 0:00:43.8]} 26... h6 {[%clk 0:01:08.7]} 27. a4 {[%clk 0:00:43.7]} 27...
Rd8 {[%clk 0:01:04.9]} 28. a5 {[%clk 0:00:42.4]} 28... Rgd6 {[%clk 0:00:47.6]}
29. Qf3 {[%clk 0:00:19.4]} 29... Qc4 {[%clk 0:00:47.7]} 30. a6 {[%clk
0:00:17.9]} 30... Rxa6 {[%clk 0:00:45.8]} 31. Rc1 {[%clk 0:00:18]} 31... Qb3
{[%clk 0:00:30.8]} 32. Qe2 {[%clk 0:00:15.9]} 32... Rad6 {[%clk 0:00:28]} 33.
Kh2 {[%clk 0:00:14]} 33... Rd5 {[%clk 0:00:23.1]} 34. Qg4 {[%clk 0:00:13.5]}
34... Qb8+ {[%clk 0:00:20.5]} 35. g3 {[%clk 0:00:13.2]} 35... Qxb2 {[%clk
0:00:18.5]} 36. Bxh6 {[%clk 0:00:12.5]} 36... Qxf2+ {[%clk 0:00:15.8]} 37. Kh3
{[%clk 0:00:11.8]} 37... g6 {[%clk 0:00:15]} 38. Bf4 {[%clk 0:00:11.1]} 38...
Rh5+ {[%clk 0:00:14.4]} 39. Qxh5 {[%clk 0:00:10.8]} 39... gxh5 {[%clk
0:00:15.3]} 40. Rc7 {[%clk 0:00:09.9]} 40... Qg1 {[%clk 0:00:12.6]} 41. Kh4
{[%clk 0:00:09.8]} 41... Rd5 {[%clk 0:00:11.8]} 42. g4 {[%clk 0:00:03.3]} 42...
Qxg4# {[%clk 0:00:11]} 0-1

[Event "*** Titled Tuesday Blitz"]
[Site "Chess.com"]
[Date "2021.04.20"]
[Round "5"]
[White "szachuspl"]
[Black "McCarthyStone"]
[Result "0-1"]
[WhiteElo "2537"]
[BlackElo "2383"]
[TimeControl "180+1"]
[EndTime "10:55:18 PDT"]
[Termination "McCarthyStone won by resignation"]

1. d4 {[%clk 0:03:00.9]} 1... d5 {[%clk 0:02:55.2]} 2. c4 {[%clk 0:03:00.7]}
2... Nc6 {[%clk 0:02:55.3]} 3. Nf3 {[%clk 0:02:57.1]} 3... Bg4 {[%clk
0:02:55.1]} 4. cxd5 {[%clk 0:02:44.7]} 4... Bxf3 {[%clk 0:02:54.8]} 5. gxf3
{[%clk 0:02:36.4]} 5... Qxd5 {[%clk 0:02:54.6]} 6. e3 {[%clk 0:02:36.7]} 6... e5
{[%clk 0:02:53]} 7. Nc3 {[%clk 0:02:36.6]} 7... Bb4 {[%clk 0:02:52.9]} 8. a3
{[%clk 0:02:36.5]} 8... Bxc3+ {[%clk 0:02:51.6]} 9. bxc3 {[%clk 0:02:37.4]} 9...
Nge7 {[%clk 0:02:35]} 10. Bg2 {[%clk 0:02:24.3]} 10... Qd6 {[%clk 0:02:27.9]}
11. O-O {[%clk 0:02:22.5]} 11... O-O {[%clk 0:02:22.3]} 12. a4 {[%clk
0:02:22.6]} 12... Rfd8 {[%clk 0:02:02]} 13. Ba3 {[%clk 0:02:21.9]} 13... Qg6
{[%clk 0:02:00.2]} 14. Kh1 {[%clk 0:02:17.5]} 14... Nf5 {[%clk 0:01:59.1]} 15.
Rg1 {[%clk 0:02:13.1]} 15... Nh4 {[%clk 0:01:45.7]} 16. Qb1 {[%clk 0:02:01]}
16... Qxb1 {[%clk 0:01:38.5]} 17. Raxb1 {[%clk 0:02:00.9]} 17... Nxg2 {[%clk
0:01:27.3]} 18. Kxg2 {[%clk 0:02:01]} 18... b6 {[%clk 0:01:27.8]} 19. Rgd1
{[%clk 0:01:57.7]} 19... Na5 {[%clk 0:01:22.5]} 20. e4 {[%clk 0:01:54.5]} 20...
Nc4 {[%clk 0:01:21.1]} 21. Bc1 {[%clk 0:01:54.7]} 21... Rd7 {[%clk 0:01:15.8]}
22. f4 {[%clk 0:01:54.8]} 22... exd4 {[%clk 0:00:57.3]} 23. cxd4 {[%clk
0:01:52]} 23... Rad8 {[%clk 0:00:57.9]} 24. Be3 {[%clk 0:01:51.7]} 24... c5
{[%clk 0:00:52.6]} 25. d5 {[%clk 0:01:50.6]} 25... Re8 {[%clk 0:00:50.3]} 26.
Kf3 {[%clk 0:01:47.2]} 26... f6 {[%clk 0:00:39.9]} 27. Rb3 {[%clk 0:01:21]}
27... Rde7 {[%clk 0:00:35.8]} 28. Bc1 {[%clk 0:00:55.8]} 28... Rxe4 {[%clk
0:00:27.6]} 29. d6 {[%clk 0:00:55.8]} 29... R4e6 {[%clk 0:00:22.3]} 30. d7
{[%clk 0:00:53.7]} 30... Rd8 {[%clk 0:00:22.8]} 31. Rbd3 {[%clk 0:00:49.9]}
31... Kf7 {[%clk 0:00:21.8]} 32. Rc3 {[%clk 0:00:40.6]} 32... Nd6 {[%clk
0:00:15.1]} 33. a5 {[%clk 0:00:39.3]} 33... Nf5 {[%clk 0:00:14.3]} 34. a6 {[%clk
0:00:34.2]} 34... Nd4+ {[%clk 0:00:14.1]} 35. Kg2 {[%clk 0:00:30.7]} 35... Rxd7
{[%clk 0:00:14.5]} 36. Be3 {[%clk 0:00:30.1]} 36... Red6 {[%clk 0:00:13.2]} 37.
Rcd3 {[%clk 0:00:29.7]} 37... Ke7 {[%clk 0:00:12.8]} 38. f5 {[%clk 0:00:29.7]}
38... Nxf5 {[%clk 0:00:11.3]} 39. Rxd6 {[%clk 0:00:25.9]} 39... Rxd6 {[%clk
0:00:11]} 40. Re1 {[%clk 0:00:26.5]} 40... Nxe3+ {[%clk 0:00:11.1]} 41. Rxe3+
{[%clk 0:00:26.9]} 41... Re6 {[%clk 0:00:12]} 42. Rd3 {[%clk 0:00:27.1]} 42...
c4 {[%clk 0:00:11.7]} 43. Rc3 {[%clk 0:00:25.1]} 43... b5 {[%clk 0:00:12.2]} 44.
Kf3 {[%clk 0:00:25.2]} 44... Rxa6 {[%clk 0:00:12.1]} 45. Ke4 {[%clk 0:00:25.3]}
45... Rd6 {[%clk 0:00:12.3]} 46. Ra3 {[%clk 0:00:24.8]} 46... a6 {[%clk
0:00:11.9]} 47. Ra1 {[%clk 0:00:24.6]} 47... Ke6 {[%clk 0:00:12.4]} 48. f4
{[%clk 0:00:24.4]} 48... f5+ {[%clk 0:00:13.3]} 49. Ke3 {[%clk 0:00:24.9]} 49...
Rc6 {[%clk 0:00:13.4]} 50. Kd4 {[%clk 0:00:25]} 50... c3 {[%clk 0:00:13.2]} 51.
Re1+ {[%clk 0:00:24.3]} 51... Kf6 {[%clk 0:00:13.3]} 52. Rc1 {[%clk 0:00:23.9]}
52... c2 {[%clk 0:00:13.5]} 53. Kd5 {[%clk 0:00:24.1]} 53... Rc8 {[%clk
0:00:12.3]} 0-1

[Event "*** Titled Tuesday Blitz"]
[Site "Chess.com"]
[Date "2021.04.20"]
[Round "5"]
[White "ecwinslow"]
[Black "canary2016"]
[Result "0-1"]
[WhiteElo "2277"]
[BlackElo "2024"]
[TimeControl "180+1"]
[EndTime "10:55:25 PDT"]
[Termination "canary2016 won on time"]

1. e4 {[%clk 0:03:00.9]} 1... c5 {[%clk 0:02:59.2]} 2. Nf3 {[%clk 0:02:59.5]}
2... d6 {[%clk 0:02:58.4]} 3. d4 {[%clk 0:02:59.4]} 3... cxd4 {[%clk 0:02:57.9]}
4. Nxd4 {[%clk 0:03:00.3]} 4... Nf6 {[%clk 0:02:56.3]} 5. Nc3 {[%clk 0:03:00.8]}
5... a6 {[%clk 0:02:52.8]} 6. Bg5 {[%clk 0:03:00.1]} 6... e6 {[%clk 0:02:52.3]}
7. f4 {[%clk 0:03:00.2]} 7... h6 {[%clk 0:02:51.8]} 8. Bh4 {[%clk 0:02:59.4]}
8... Qb6 {[%clk 0:02:49.4]} 9. Qd2 {[%clk 0:02:59.4]} 9... Qxb2 {[%clk
0:02:48.9]} 10. Rb1 {[%clk 0:02:59.3]} 10... Qa3 {[%clk 0:02:47.7]} 11. Be2
{[%clk 0:02:58.3]} 11... Be7 {[%clk 0:02:44.4]} 12. e5 {[%clk 0:02:54.4]} 12...
dxe5 {[%clk 0:02:44.1]} 13. fxe5 {[%clk 0:02:54.2]} 13... Nfd7 {[%clk
0:02:44.4]} 14. Bg3 {[%clk 0:02:47.9]} 14... O-O {[%clk 0:02:42.4]} 15. O-O
{[%clk 0:02:37.9]} 15... Qc5 {[%clk 0:02:29.5]} 16. Ne4 {[%clk 0:02:28.6]} 16...
Qc7 {[%clk 0:02:26.2]} 17. Nf6+ {[%clk 0:02:16.8]} 17... Kh8 {[%clk 0:02:18.5]}
18. Kh1 {[%clk 0:02:03.6]} 18... Qd8 {[%clk 0:01:54.8]} 19. Ng4 {[%clk
0:01:44.5]} 19... Bg5 {[%clk 0:01:49.8]} 20. Qd3 {[%clk 0:01:36.9]} 20... Nc5
{[%clk 0:01:46.7]} 21. Qc4 {[%clk 0:01:30]} 21... Qd5 {[%clk 0:01:41.2]} 22.
Qxd5 {[%clk 0:01:22.2]} 22... exd5 {[%clk 0:01:41]} 23. Nf5 {[%clk 0:01:19]}
23... Ne4 {[%clk 0:01:38.2]} 24. Nd6 {[%clk 0:01:03.5]} 24... Nd2 {[%clk
0:01:19.8]} 25. Rxf7 {[%clk 0:00:59.2]} 25... Rxf7 {[%clk 0:01:10.2]} 26. Nxf7+
{[%clk 0:00:58.3]} 26... Kg8 {[%clk 0:01:09.4]} 27. Nxg5 {[%clk 0:00:55.5]}
27... Nxb1 {[%clk 0:01:07.7]} 28. Nh3 {[%clk 0:00:50.4]} 28... Nc6 {[%clk
0:01:03.2]} 29. Nf4 {[%clk 0:00:41.7]} 29... Nc3 {[%clk 0:00:59.2]} 30. Bf3
{[%clk 0:00:40.1]} 30... Bxg4 {[%clk 0:00:55.4]} 31. Bxg4 {[%clk 0:00:39.9]}
31... Nxe5 {[%clk 0:00:52.3]} 32. Be6+ {[%clk 0:00:38.9]} 32... Kh7 {[%clk
0:00:41.1]} 33. Nxd5 {[%clk 0:00:35.4]} 33... Nc6 {[%clk 0:00:33.5]} 34. Nxc3
{[%clk 0:00:30.6]} 34... Re8 {[%clk 0:00:24.4]} 35. Bf5+ {[%clk 0:00:30.6]}
35... g6 {[%clk 0:00:23.8]} 36. Be4 {[%clk 0:00:30.9]} 36... Na5 {[%clk
0:00:17.1]} 37. Kg1 {[%clk 0:00:29.5]} 37... b5 {[%clk 0:00:15.8]} 38. Bd3
{[%clk 0:00:28.6]} 38... Nc6 {[%clk 0:00:13.4]} 39. a4 {[%clk 0:00:25.4]} 39...
bxa4 {[%clk 0:00:12.5]} 40. Nxa4 {[%clk 0:00:25.2]} 40... Nb4 {[%clk 0:00:11.5]}
41. Nc5 {[%clk 0:00:18.5]} 41... a5 {[%clk 0:00:10]} 42. Kf2 {[%clk 0:00:15.2]}
42... Rc8 {[%clk 0:00:09.1]} 43. Na4 {[%clk 0:00:13.5]} 43... Nxc2 {[%clk
0:00:08.1]} 44. h4 {[%clk 0:00:12.9]} 44... Nd4 {[%clk 0:00:07.9]} 45. h5 {[%clk
0:00:12.1]} 45... Nf5 {[%clk 0:00:06.6]} 46. hxg6+ {[%clk 0:00:11.4]} 46... Kxg6
{[%clk 0:00:06.7]} 47. Be5 {[%clk 0:00:10.7]} 47... Rf8 {[%clk 0:00:06.6]} 48.
Ke2 {[%clk 0:00:09]} 48... Kg5 {[%clk 0:00:06.7]} 49. Nc5 {[%clk 0:00:06.6]}
49... Nh4 {[%clk 0:00:06.4]} 50. Kd2 {[%clk 0:00:04.8]} 50... Re8 {[%clk
0:00:05.9]} 51. Bd6 {[%clk 0:00:02]} 51... Nxg2 {[%clk 0:00:05.8]} 0-1

[Event "*** Titled Tuesday Blitz"]
[Site "Chess.com"]
[Date "2021.04.20"]
[Round "5"]
[White "ViktoriyaTarasova"]
[Black "Grandmaster1369"]
[Result "1-0"]
[WhiteElo "2438"]
[BlackElo "2596"]
[TimeControl "180+1"]
[EndTime "10:55:26 PDT"]
[Termination "ViktoriyaTarasova won by checkmate"]

1. d4 {[%clk 0:03:00.9]} 1... Nf6 {[%clk 0:03:00]} 2. c4 {[%clk 0:03:00.6]} 2...
g6 {[%clk 0:02:56.9]} 3. Nc3 {[%clk 0:02:58.2]} 3... d5 {[%clk 0:02:57.2]} 4. g3
{[%clk 0:02:53.6]} 4... Bg7 {[%clk 0:02:54.6]} 5. Bg2 {[%clk 0:02:49.5]} 5... c6
{[%clk 0:02:54.5]} 6. Qa4 {[%clk 0:02:45.1]} 6... O-O {[%clk 0:02:53]} 7. cxd5
{[%clk 0:02:38.5]} 7... cxd5 {[%clk 0:02:51.8]} 8. e3 {[%clk 0:02:30.9]} 8...
Nc6 {[%clk 0:02:44.4]} 9. Nge2 {[%clk 0:02:28]} 9... h5 {[%clk 0:02:33.8]} 10.
O-O {[%clk 0:02:25.1]} 10... h4 {[%clk 0:02:34.5]} 11. Nf4 {[%clk 0:02:21.7]}
11... e6 {[%clk 0:02:29.5]} 12. b4 {[%clk 0:02:16.3]} 12... a6 {[%clk
0:02:19.5]} 13. Qb3 {[%clk 0:02:14]} 13... b5 {[%clk 0:02:18.2]} 14. a4 {[%clk
0:02:12.6]} 14... bxa4 {[%clk 0:02:11.9]} 15. Nxa4 {[%clk 0:01:39.6]} 15... Rb8
{[%clk 0:02:10.1]} 16. Ba3 {[%clk 0:01:12.9]} 16... Na7 {[%clk 0:01:49.1]} 17.
Qd3 {[%clk 0:00:57.3]} 17... Nb5 {[%clk 0:01:46.6]} 18. Nc5 {[%clk 0:00:54.3]}
18... Ne8 {[%clk 0:01:36.1]} 19. Bb2 {[%clk 0:00:43.8]} 19... Qb6 {[%clk
0:01:33.3]} 20. Rfc1 {[%clk 0:00:39.9]} 20... Ned6 {[%clk 0:01:31.3]} 21. Bf1
{[%clk 0:00:28.4]} 21... Nc4 {[%clk 0:01:11.7]} 22. Qc2 {[%clk 0:00:26.9]} 22...
Nbd6 {[%clk 0:01:09.6]} 23. Bc3 {[%clk 0:00:25.9]} 23... Rd8 {[%clk 0:01:01]}
24. Ra2 {[%clk 0:00:25.5]} 24... Bf8 {[%clk 0:00:59.5]} 25. Rca1 {[%clk
0:00:25.2]} 25... Ra8 {[%clk 0:00:59.5]} 26. Nfd3 {[%clk 0:00:21.6]} 26... hxg3
{[%clk 0:00:44.4]} 27. hxg3 {[%clk 0:00:20.9]} 27... Bb7 {[%clk 0:00:42.7]} 28.
Nb2 {[%clk 0:00:20.7]} 28... Nxb2 {[%clk 0:00:41.7]} 29. Qxb2 {[%clk 0:00:19.7]}
29... Nb5 {[%clk 0:00:42.4]} 30. Qc2 {[%clk 0:00:17.7]} 30... Rdc8 {[%clk
0:00:28.4]} 31. Bd2 {[%clk 0:00:17.3]} 31... Nd6 {[%clk 0:00:26.3]} 32. Qd1
{[%clk 0:00:15]} 32... Nc4 {[%clk 0:00:24.4]} 33. Bc3 {[%clk 0:00:13.1]} 33...
Rcb8 {[%clk 0:00:18]} 34. Nd3 {[%clk 0:00:12.2]} 34... Qd8 {[%clk 0:00:16.6]}
35. Nc5 {[%clk 0:00:12.3]} 35... Bc8 {[%clk 0:00:15.3]} 36. Qf3 {[%clk
0:00:12.4]} 36... Nd6 {[%clk 0:00:15.5]} 37. Bd3 {[%clk 0:00:11.6]} 37... Nb5
{[%clk 0:00:13.5]} 38. Bd2 {[%clk 0:00:11]} 38... Bxc5 {[%clk 0:00:14.1]} 39.
bxc5 {[%clk 0:00:10.3]} 39... Bd7 {[%clk 0:00:14.9]} 40. Kg2 {[%clk 0:00:10]}
40... Nc7 {[%clk 0:00:14.8]} 41. Rh1 {[%clk 0:00:09.9]} 41... Qg5 {[%clk
0:00:13.2]} 42. e4 {[%clk 0:00:08.1]} 42... dxe4 {[%clk 0:00:12.9]} 43. Bxe4
{[%clk 0:00:08.1]} 43... Nd5 {[%clk 0:00:13.6]} 44. Bxg5 {[%clk 0:00:07.3]}
44... Bc6 {[%clk 0:00:12.6]} 45. Bf6 {[%clk 0:00:07.4]} 45... Nxf6 {[%clk
0:00:08.2]} 46. Bxc6 {[%clk 0:00:07.6]} 46... Ra7 {[%clk 0:00:08.9]} 47. Qxf6
{[%clk 0:00:07.6]} 47... Rc7 {[%clk 0:00:09]} 48. Rh8# {[%clk 0:00:08.1]} 1-0

[Event "*** Titled Tuesday Blitz"]
[Site "Chess.com"]
[Date "2021.04.20"]
[Round "5"]
[White "maxip32"]
[Black "GadimbayliA"]
[Result "0-1"]
[WhiteElo "2531"]
[BlackElo "2754"]
[TimeControl "180+1"]
[EndTime "10:55:28 PDT"]
[Termination "GadimbayliA won on time"]

1. e4 {[%clk 0:03:00.9]} 1... e5 {[%clk 0:02:58.8]} 2. Nf3 {[%clk 0:02:59.5]}
2... d5 {[%clk 0:02:58.5]} 3. Nxe5 {[%clk 0:02:21.9]} 3... Bd6 {[%clk 0:02:58]}
4. d4 {[%clk 0:02:20.5]} 4... dxe4 {[%clk 0:02:57.4]} 5. Nc3 {[%clk 0:02:17.2]}
5... Bxe5 {[%clk 0:02:57.6]} 6. dxe5 {[%clk 0:02:16.6]} 6... Qxd1+ {[%clk
0:02:58.5]} 7. Nxd1 {[%clk 0:02:12.2]} 7... Nc6 {[%clk 0:02:59.4]} 8. Bf4 {[%clk
0:02:05.9]} 8... Nge7 {[%clk 0:02:58.5]} 9. Nc3 {[%clk 0:02:05.6]} 9... Ng6
{[%clk 0:02:57.6]} 10. Bg3 {[%clk 0:02:04.1]} 10... Bf5 {[%clk 0:02:57.6]} 11.
Bb5 {[%clk 0:01:29.9]} 11... O-O-O {[%clk 0:02:52.1]} 12. Bxc6 {[%clk
0:01:04.1]} 12... bxc6 {[%clk 0:02:53]} 13. Rd1 {[%clk 0:01:01.6]} 13... Rhe8
{[%clk 0:02:15.5]} 14. Rxd8+ {[%clk 0:01:00.4]} 14... Kxd8 {[%clk 0:02:16.4]}
15. Ke2 {[%clk 0:00:51.6]} 15... Nxe5 {[%clk 0:02:15.5]} 16. Bxe5 {[%clk
0:00:52.5]} 16... Rxe5 {[%clk 0:02:15.9]} 17. Ke3 {[%clk 0:00:50.3]} 17... Bg6
{[%clk 0:02:16.1]} 18. g4 {[%clk 0:00:47.6]} 18... h5 {[%clk 0:02:14.5]} 19. h3
{[%clk 0:00:47]} 19... Ke7 {[%clk 0:02:14.1]} 20. Kf4 {[%clk 0:00:43.1]} 20...
Ke6 {[%clk 0:01:51.3]} 21. Rd1 {[%clk 0:00:28.8]} 21... e3 {[%clk 0:01:41.9]}
22. fxe3 {[%clk 0:00:26.5]} 22... Bxc2 {[%clk 0:01:42.2]} 23. Rd8 {[%clk
0:00:23.3]} 23... g5+ {[%clk 0:01:29.9]} 24. Kf3 {[%clk 0:00:23]} 24... hxg4+
{[%clk 0:01:30.3]} 25. hxg4 {[%clk 0:00:23.9]} 25... Bg6 {[%clk 0:01:12.7]} 26.
Ra8 {[%clk 0:00:16.9]} 26... Ra5 {[%clk 0:01:11.3]} 27. a3 {[%clk 0:00:14.1]}
27... f5 {[%clk 0:01:09.7]} 28. gxf5+ {[%clk 0:00:12.5]} 28... Bxf5 {[%clk
0:01:10.6]} 29. e4 {[%clk 0:00:12.9]} 29... Bg6 {[%clk 0:01:07.7]} 30. Rg8
{[%clk 0:00:12.7]} 30... Kf6 {[%clk 0:01:06]} 31. Rc8 {[%clk 0:00:12.3]} 31...
Bh5+ {[%clk 0:01:01.5]} 32. Ke3 {[%clk 0:00:12.3]} 32... g4 {[%clk 0:00:54.9]}
33. Kf4 {[%clk 0:00:12]} 33... Ra6 {[%clk 0:00:36.7]} 34. Rxc7 {[%clk
0:00:11.6]} 34... Rb6 {[%clk 0:00:36.8]} 35. b4 {[%clk 0:00:11.6]} 35... a5
{[%clk 0:00:35.7]} 36. bxa5 {[%clk 0:00:11.4]} 36... Ra6 {[%clk 0:00:35.2]} 37.
e5+ {[%clk 0:00:10.6]} 37... Ke6 {[%clk 0:00:34]} 38. Ne4 {[%clk 0:00:11.5]}
38... Rxa5 {[%clk 0:00:33.2]} 39. Rxc6+ {[%clk 0:00:11.5]} 39... Ke7 {[%clk
0:00:32.6]} 40. Rc3 {[%clk 0:00:07.3]} 40... Ra4 {[%clk 0:00:29]} 41. Kf5 {[%clk
0:00:07]} 41... Bf7 {[%clk 0:00:24.2]} 42. Nc5 {[%clk 0:00:06]} 42... Rd4 {[%clk
0:00:21.5]} 43. e6 {[%clk 0:00:02.7]} 43... Be8 {[%clk 0:00:20.2]} 44. Ke5
{[%clk 0:00:02.8]} 44... Rd1 {[%clk 0:00:19.5]} 45. Ne4 {[%clk 0:00:02.8]} 45...
Re1 {[%clk 0:00:15.8]} 46. Rc7+ {[%clk 0:00:02.7]} 46... Kd8 {[%clk 0:00:16.1]}
47. Rc4 {[%clk 0:00:01.7]} 47... g3 {[%clk 0:00:16.3]} 48. Kd6 {[%clk
0:00:01.3]} 48... Rd1+ {[%clk 0:00:14.3]} 49. Ke5 {[%clk 0:00:01.5]} 49... g2
{[%clk 0:00:13.3]} 0-1

[Event "*** Titled Tuesday Blitz"]
[Site "Chess.com"]
[Date "2021.04.20"]
[Round "5"]
[White "twitchTriniCupid"]
[Black "Hangar-18"]
[Result "1-0"]
[WhiteElo "2234"]
[BlackElo "2336"]
[TimeControl "180+1"]
[EndTime "10:55:28 PDT"]
[Termination "twitchTriniCupid won by checkmate"]

1. d4 {[%clk 0:03:00.9]} 1... Nf6 {[%clk 0:02:59.1]} 2. c4 {[%clk 0:03:00.1]}
2... e6 {[%clk 0:02:56.4]} 3. Nf3 {[%clk 0:02:59.3]} 3... Bb4+ {[%clk
0:02:48.8]} 4. Nbd2 {[%clk 0:02:58.3]} 4... O-O {[%clk 0:02:48]} 5. e3 {[%clk
0:02:58.3]} 5... d5 {[%clk 0:02:46.3]} 6. a3 {[%clk 0:02:56.8]} 6... Bd6 {[%clk
0:02:45.7]} 7. c5 {[%clk 0:02:52]} 7... Be7 {[%clk 0:02:45.3]} 8. b4 {[%clk
0:02:52]} 8... b6 {[%clk 0:02:43.4]} 9. Bb2 {[%clk 0:02:51]} 9... a5 {[%clk
0:02:43.3]} 10. Bd3 {[%clk 0:02:48.5]} 10... axb4 {[%clk 0:02:42.7]} 11. axb4
{[%clk 0:02:48.2]} 11... Rxa1 {[%clk 0:02:42.1]} 12. Qxa1 {[%clk 0:02:47.4]}
12... Nc6 {[%clk 0:02:35]} 13. Bc3 {[%clk 0:02:43.1]} 13... bxc5 {[%clk
0:02:33.8]} 14. bxc5 {[%clk 0:02:41.7]} 14... Bd7 {[%clk 0:02:31.3]} 15. O-O
{[%clk 0:02:40.8]} 15... Qa8 {[%clk 0:02:31.1]} 16. Qb2 {[%clk 0:02:00.9]} 16...
Rb8 {[%clk 0:02:28.8]} 17. Ra1 {[%clk 0:02:00.6]} 17... Qb7 {[%clk 0:02:20.4]}
18. Qa3 {[%clk 0:01:54.5]} 18... g6 {[%clk 0:02:07.1]} 19. Rb1 {[%clk 0:01:39]}
19... Qa8 {[%clk 0:01:55.7]} 20. Rxb8+ {[%clk 0:01:39.9]} 20... Qxb8 {[%clk
0:01:54.6]} 21. g3 {[%clk 0:01:37.6]} 21... Kg7 {[%clk 0:01:53.5]} 22. h4 {[%clk
0:01:36.3]} 22... h6 {[%clk 0:01:51.7]} 23. Kg2 {[%clk 0:01:34.6]} 23... Ng4
{[%clk 0:01:48.6]} 24. Ne1 {[%clk 0:01:30.7]} 24... Qd8 {[%clk 0:01:41.5]} 25.
Ndf3 {[%clk 0:01:26.9]} 25... Bf6 {[%clk 0:01:38.6]} 26. e4 {[%clk 0:01:23.1]}
26... dxe4 {[%clk 0:01:35.6]} 27. Bxe4 {[%clk 0:01:24]} 27... Ne7 {[%clk
0:01:35]} 28. Qa6 {[%clk 0:01:17.1]} 28... Nd5 {[%clk 0:01:22.9]} 29. Bd2 {[%clk
0:01:15]} 29... Qc8 {[%clk 0:01:11.9]} 30. Qa7 {[%clk 0:01:12.4]} 30... Bc6
{[%clk 0:01:10.9]} 31. Kg1 {[%clk 0:01:09.7]} 31... Qb7 {[%clk 0:01:10.6]} 32.
Qxb7 {[%clk 0:01:07.4]} 32... Bxb7 {[%clk 0:01:11.5]} 33. Ba5 {[%clk 0:01:05.4]}
33... c6 {[%clk 0:00:56.3]} 34. Nd3 {[%clk 0:01:04.7]} 34... Ba6 {[%clk
0:00:55.2]} 35. Bxd5 {[%clk 0:01:01.9]} 35... exd5 {[%clk 0:00:52.7]} 36. Nb4
{[%clk 0:01:01.7]} 36... Bb5 {[%clk 0:00:52.3]} 37. Bc7 {[%clk 0:00:59.7]} 37...
Kf8 {[%clk 0:00:38.7]} 38. Bd6+ {[%clk 0:00:51.1]} 38... Ke8 {[%clk 0:00:38.5]}
39. Kg2 {[%clk 0:00:50.7]} 39... Kd7 {[%clk 0:00:38.3]} 40. Bf4 {[%clk
0:00:49.5]} 40... Be2 {[%clk 0:00:34.3]} 41. Be3 {[%clk 0:00:47.3]} 41... Nxe3+
{[%clk 0:00:21.2]} 42. fxe3 {[%clk 0:00:47]} 42... g5 {[%clk 0:00:20.9]} 43.
hxg5 {[%clk 0:00:45.5]} 43... hxg5 {[%clk 0:00:20.6]} 44. Kf2 {[%clk 0:00:45.9]}
44... Bb5 {[%clk 0:00:19.4]} 45. g4 {[%clk 0:00:43.8]} 45... Bd8 {[%clk
0:00:19.1]} 46. Nc2 {[%clk 0:00:37.9]} 46... f6 {[%clk 0:00:19.2]} 47. Nh2
{[%clk 0:00:31.9]} 47... Ke6 {[%clk 0:00:18.6]} 48. Nf1 {[%clk 0:00:30.3]} 48...
f5 {[%clk 0:00:18.9]} 49. gxf5+ {[%clk 0:00:29.7]} 49... Kxf5 {[%clk 0:00:19.2]}
50. Ng3+ {[%clk 0:00:28.6]} 50... Kg4 {[%clk 0:00:19]} 51. Ne1 {[%clk 0:00:28]}
51... Bc7 {[%clk 0:00:18.8]} 52. Nh1 {[%clk 0:00:23.7]} 52... Kh3 {[%clk
0:00:17.9]} 53. Nf3 {[%clk 0:00:21.3]} 53... g4 {[%clk 0:00:17.5]} 54. Ne1
{[%clk 0:00:17.6]} 54... Bd8 {[%clk 0:00:16.8]} 55. Ng2 {[%clk 0:00:15.9]} 55...
Bg5 {[%clk 0:00:15.9]} 56. Nf4+ {[%clk 0:00:14.7]} 56... Kh4 {[%clk 0:00:15.3]}
57. Ng3 {[%clk 0:00:14.9]} 57... Ba4 {[%clk 0:00:13]} 58. Nf5# {[%clk
0:00:14.7]} 1-0